[Event "Late-Titled-Tuesday-Blitz-April-02-2024"]
[Site "Chess.com"]
[Date "2024.04.02"]
[Round "2"]
[White "Sesleria"]
[Black "Speed-O-Sonic"]
[Result "0-1"]
[WhiteElo "2159"]
[BlackElo "2448"]
[TimeControl "180+1"]
[EndTime "14:17:14 PDT"]
[Termination "Speed-O-Sonic won by resignation"]

1. c4 {[%clk 0:03:00.9]} 1... e6 {[%clk 0:02:59.1]} 2. Nc3 {[%clk 0:03:00.4]}
2... d5 {[%clk 0:02:31.4]} 3. e3 {[%clk 0:02:59.7]} 3... Nf6 {[%clk 0:02:23.5]}
4. Nf3 {[%clk 0:02:59.2]} 4... b6 {[%clk 0:02:19.3]} 5. cxd5 {[%clk 0:02:39.5]}
5... exd5 {[%clk 0:02:18.4]} 6. d4 {[%clk 0:02:24.4]} 6... Bb7 {[%clk
0:02:17.5]} 7. Bd3 {[%clk 0:02:23.6]} 7... Nbd7 {[%clk 0:02:17.3]} 8. O-O {[%clk
0:02:23.5]} 8... Bd6 {[%clk 0:02:17.5]} 9. Nb5 {[%clk 0:02:09.4]} 9... Be7
{[%clk 0:02:17.5]} 10. b3 {[%clk 0:02:03.9]} 10... O-O {[%clk 0:02:16.3]} 11.
Ba3 {[%clk 0:02:01.3]} 11... c6 {[%clk 0:02:12]} 12. Bxe7 {[%clk 0:01:59.7]}
12... Qxe7 {[%clk 0:02:12.9]} 13. Nc3 {[%clk 0:01:57.5]} 13... c5 {[%clk
0:02:12.6]} 14. Re1 {[%clk 0:01:54.7]} 14... Rac8 {[%clk 0:02:06.9]} 15. Rc1
{[%clk 0:01:34.8]} 15... Ne4 {[%clk 0:02:06]} 16. Bf1 {[%clk 0:01:07.8]} 16...
Rfe8 {[%clk 0:01:55.2]} 17. dxc5 {[%clk 0:01:04.1]} 17... Nxc3 {[%clk
0:01:46.7]} 18. Rxc3 {[%clk 0:01:02.7]} 18... bxc5 {[%clk 0:01:46.3]} 19. Rc1
{[%clk 0:00:42.2]} 19... Nf6 {[%clk 0:01:38.1]} 20. Bb5 {[%clk 0:00:37.7]} 20...
Red8 {[%clk 0:01:33.2]} 21. Qc2 {[%clk 0:00:30.5]} 21... Qd6 {[%clk 0:01:24.6]}
22. Be2 {[%clk 0:00:24.2]} 22... Ne4 {[%clk 0:01:21.8]} 23. g3 {[%clk
0:00:20.4]} 23... h5 {[%clk 0:01:20.7]} 24. Nd2 {[%clk 0:00:19.9]} 24... Nf6
{[%clk 0:01:18.2]} 25. Bf3 {[%clk 0:00:19.3]} 25... h4 {[%clk 0:01:17.2]} 26. e4
{[%clk 0:00:16.7]} 26... hxg3 {[%clk 0:01:14]} 27. hxg3 {[%clk 0:00:16.4]} 27...
dxe4 {[%clk 0:00:59.7]} 28. Nxe4 {[%clk 0:00:16.7]} 28... Bxe4 {[%clk
0:01:00.3]} 29. Bxe4 {[%clk 0:00:17.1]} 29... Qd2 {[%clk 0:01:01]} 30. Re2
{[%clk 0:00:13.5]} 30... Qxc2 {[%clk 0:00:58.5]} 31. Rcxc2 {[%clk 0:00:14]}
31... Rd1+ {[%clk 0:00:58.8]} 32. Kg2 {[%clk 0:00:14.1]} 32... g6 {[%clk
0:00:58.1]} 33. Bf3 {[%clk 0:00:13.9]} 33... Rd4 {[%clk 0:00:56]} 34. Red2
{[%clk 0:00:13.3]} 34... Rxd2 {[%clk 0:00:53.7]} 35. Rxd2 {[%clk 0:00:14.2]}
35... c4 {[%clk 0:00:54.3]} 36. Rc2 {[%clk 0:00:14.3]} 36... c3 {[%clk
0:00:55.2]} 37. b4 {[%clk 0:00:14.4]} 37... Rc4 {[%clk 0:00:54.3]} 38. a3 {[%clk
0:00:14.3]} 38... Nd7 {[%clk 0:00:54.5]} 39. Bd5 {[%clk 0:00:14.1]} 39... Rc7
{[%clk 0:00:54.5]} 40. Kf3 {[%clk 0:00:12.5]} 40... Nb6 {[%clk 0:00:55.1]} 41.
Ke4 {[%clk 0:00:13]} 41... Re7+ {[%clk 0:00:52.3]} 42. Kd4 {[%clk 0:00:13.2]}
42... Rd7 {[%clk 0:00:53]} 43. Kxc3 {[%clk 0:00:12.8]} 43... Rxd5 {[%clk
0:00:52.9]} 44. Re2 {[%clk 0:00:12.7]} 44... a5 {[%clk 0:00:51.5]} 45. Re8+
{[%clk 0:00:09.2]} 45... Kg7 {[%clk 0:00:52.1]} 46. Rb8 {[%clk 0:00:09.6]} 46...
axb4+ {[%clk 0:00:51.9]} 47. axb4 {[%clk 0:00:10.4]} 47... Nd7 {[%clk
0:00:51.2]} 48. Rb7 {[%clk 0:00:09.5]} 48... Ne5 {[%clk 0:00:51.4]} 49. b5
{[%clk 0:00:09.1]} 49... Rd3+ {[%clk 0:00:51.6]} 50. Kb4 {[%clk 0:00:08.8]}
50... Rf3 {[%clk 0:00:51]} 51. Re7 {[%clk 0:00:07.3]} 51... Kf6 {[%clk
0:00:51.5]} 52. Re8 {[%clk 0:00:07.3]} 52... Rxf2 {[%clk 0:00:51.9]} 53. b6
{[%clk 0:00:07.3]} 53... Rb2+ {[%clk 0:00:51.8]} 54. Kc5 {[%clk 0:00:06.7]}
54... Nd7+ {[%clk 0:00:52.2]} 55. Kd6 {[%clk 0:00:06.1]} 55... Nxb6 {[%clk
0:00:52.2]} 0-1

[Event "Late-Titled-Tuesday-Blitz-April-02-2024"]
[Site "Chess.com"]
[Date "2024.04.02"]
[Round "2"]
[White "elcala"]
[Black "FREZZY23"]
[Result "0-1"]
[WhiteElo "1808"]
[BlackElo "2411"]
[TimeControl "180+1"]
[EndTime "14:17:14 PDT"]
[Termination "FREZZY23 won by resignation"]

1. d4 {[%clk 0:03:00.9]} 1... Nf6 {[%clk 0:02:56.7]} 2. Bf4 {[%clk 0:03:00.7]}
2... g6 {[%clk 0:02:56]} 3. e3 {[%clk 0:03:00.9]} 3... Bg7 {[%clk 0:02:56.2]} 4.
Nf3 {[%clk 0:03:01]} 4... O-O {[%clk 0:02:56.3]} 5. h3 {[%clk 0:03:00.9]} 5...
d6 {[%clk 0:02:56.2]} 6. Be2 {[%clk 0:03:01.3]} 6... c5 {[%clk 0:02:55.2]} 7. c3
{[%clk 0:03:00.2]} 7... Nc6 {[%clk 0:02:54]} 8. O-O {[%clk 0:02:58.8]} 8... Qb6
{[%clk 0:02:54.1]} 9. Qb3 {[%clk 0:02:56.3]} 9... Be6 {[%clk 0:02:53.3]} 10. Qc2
{[%clk 0:02:35.9]} 10... Rac8 {[%clk 0:02:50.7]} 11. dxc5 {[%clk 0:02:23.1]}
11... Qxc5 {[%clk 0:02:47.4]} 12. Nbd2 {[%clk 0:02:18.6]} 12... Nb4 {[%clk
0:02:38.6]} 13. Qa4 {[%clk 0:02:07.6]} 13... Nbd5 {[%clk 0:02:32.6]} 14. Bh2
{[%clk 0:02:04.9]} 14... Bd7 {[%clk 0:02:06.9]} 15. Qc2 {[%clk 0:02:02.5]} 15...
e5 {[%clk 0:01:52.8]} 16. Rac1 {[%clk 0:01:58.2]} 16... h6 {[%clk 0:01:45]} 17.
Rfd1 {[%clk 0:01:56.9]} 17... Nxe3 {[%clk 0:00:40.8]} 18. fxe3 {[%clk
0:01:30.7]} 18... Qxe3+ {[%clk 0:00:41.7]} 19. Kf1 {[%clk 0:01:22]} 19... Bf5
{[%clk 0:00:35.8]} 20. Qa4 {[%clk 0:01:13.5]} 20... d5 {[%clk 0:00:11.9]} 21.
Bg1 {[%clk 0:01:11.2]} 21... Qf4 {[%clk 0:00:09.3]} 22. Bh2 {[%clk 0:01:10.1]}
22... Qxa4 {[%clk 0:00:09.2]} 23. a3 {[%clk 0:01:06.9]} 23... Nh5 {[%clk
0:00:04.3]} 24. Nxe5 {[%clk 0:01:05.6]} 24... Rfe8 {[%clk 0:00:03.9]} 25. Nef3
{[%clk 0:01:04.3]} 25... Nf6 {[%clk 0:00:03.3]} 26. Re1 {[%clk 0:00:58.6]} 26...
Ne4 {[%clk 0:00:03.4]} 27. Nxe4 {[%clk 0:00:57.7]} 27... dxe4 {[%clk 0:00:03.9]}
28. Nd4 {[%clk 0:00:57.1]} 28... Bxd4 {[%clk 0:00:03.7]} 29. cxd4 {[%clk
0:00:56]} 29... Qxd4 {[%clk 0:00:04.4]} 30. Rcd1 {[%clk 0:00:52.8]} 30... Qxb2
{[%clk 0:00:04.5]} 31. Bg1 {[%clk 0:00:46.9]} 31... e3 {[%clk 0:00:03.8]} 32.
Bh2 {[%clk 0:00:43.5]} 32... Qf6 {[%clk 0:00:03.8]} 33. Kg1 {[%clk 0:00:41.6]}
33... Rc2 {[%clk 0:00:03.2]} 34. Bf3 {[%clk 0:00:38.8]} 34... Bxh3 {[%clk
0:00:03.1]} 35. Rd6 {[%clk 0:00:32.4]} 35... Rxg2+ {[%clk 0:00:02.5]} 36. Bxg2
{[%clk 0:00:31.8]} 36... Qf2+ {[%clk 0:00:03.4]} 0-1

[Event "Late-Titled-Tuesday-Blitz-April-02-2024"]
[Site "Chess.com"]
[Date "2024.04.02"]
[Round "2"]
[White "slorovel"]
[Black "B_nn_t"]
[Result "1/2-1/2"]
[WhiteElo "2636"]
[BlackElo "2246"]
[TimeControl "180+1"]
[EndTime "14:17:22 PDT"]
[Termination "Game drawn by stalemate"]

1. e4 {[%clk 0:03:00.9]} 1... c5 {[%clk 0:02:59]} 2. Nf3 {[%clk 0:02:58.7]} 2...
d6 {[%clk 0:02:59.1]} 3. b3 {[%clk 0:02:55.9]} 3... Nf6 {[%clk 0:02:55.6]} 4. d3
{[%clk 0:02:54.6]} 4... e5 {[%clk 0:02:48.6]} 5. Be2 {[%clk 0:02:49.6]} 5... Be7
{[%clk 0:02:48.1]} 6. a4 {[%clk 0:02:49.2]} 6... O-O {[%clk 0:02:47.7]} 7. O-O
{[%clk 0:02:48.3]} 7... Nc6 {[%clk 0:02:47.5]} 8. Na3 {[%clk 0:02:46.1]} 8...
Ne8 {[%clk 0:02:44.9]} 9. Nc4 {[%clk 0:02:46]} 9... f5 {[%clk 0:02:44.4]} 10.
exf5 {[%clk 0:02:46.1]} 10... Bxf5 {[%clk 0:02:43.4]} 11. Ne3 {[%clk 0:02:46.7]}
11... Be6 {[%clk 0:02:42.3]} 12. Bb2 {[%clk 0:02:46.7]} 12... h6 {[%clk
0:02:40.6]} 13. c4 {[%clk 0:02:28.4]} 13... Bg5 {[%clk 0:02:24.4]} 14. Nd2
{[%clk 0:02:26.8]} 14... Bxe3 {[%clk 0:02:20]} 15. fxe3 {[%clk 0:02:27.7]} 15...
Nf6 {[%clk 0:02:15.4]} 16. Bf3 {[%clk 0:02:20.4]} 16... Qd7 {[%clk 0:02:11.5]}
17. Qe2 {[%clk 0:02:20.1]} 17... Rf7 {[%clk 0:02:01.7]} 18. Ne4 {[%clk
0:02:20.1]} 18... Nxe4 {[%clk 0:02:01.1]} 19. dxe4 {[%clk 0:02:20.5]} 19... Raf8
{[%clk 0:01:59]} 20. Rad1 {[%clk 0:02:19.6]} 20... Qe7 {[%clk 0:01:56.3]} 21.
Qf2 {[%clk 0:02:02]} 21... Bg4 {[%clk 0:01:51.2]} 22. Qg3 {[%clk 0:02:01.9]}
22... Bxf3 {[%clk 0:01:51.2]} 23. Rxf3 {[%clk 0:02:01.7]} 23... Rxf3 {[%clk
0:01:47.1]} 24. gxf3 {[%clk 0:02:02.6]} 24... Rf6 {[%clk 0:01:45.7]} 25. Kf2
{[%clk 0:01:54.8]} 25... a5 {[%clk 0:01:44.4]} 26. h4 {[%clk 0:01:49.9]} 26...
b6 {[%clk 0:01:41.3]} 27. Bc3 {[%clk 0:01:49.6]} 27... Qf7 {[%clk 0:01:36.5]}
28. Rg1 {[%clk 0:01:44.6]} 28... Nb8 {[%clk 0:01:34.4]} 29. Qg4 {[%clk
0:01:36.2]} 29... Nd7 {[%clk 0:01:33.9]} 30. h5 {[%clk 0:01:36.5]} 30... Nf8
{[%clk 0:01:30.1]} 31. Rd1 {[%clk 0:01:34.7]} 31... Qe6 {[%clk 0:01:27.5]} 32.
Kg3 {[%clk 0:01:17.9]} 32... Qxg4+ {[%clk 0:01:27.1]} 33. Kxg4 {[%clk
0:01:18.8]} 33... Kf7 {[%clk 0:01:26.1]} 34. Be1 {[%clk 0:01:18.4]} 34... g5
{[%clk 0:01:23.4]} 35. Bg3 {[%clk 0:01:05]} 35... Nh7 {[%clk 0:01:20.5]} 36. f4
{[%clk 0:01:05]} 36... gxf4 {[%clk 0:01:17]} 37. exf4 {[%clk 0:01:05.9]} 37...
exf4 {[%clk 0:01:17.7]} 38. Bxf4 {[%clk 0:01:06.1]} 38... Re6 {[%clk 0:01:18.4]}
39. Rxd6 {[%clk 0:00:59.9]} 39... Nf6+ {[%clk 0:01:15.9]} 40. Kf5 {[%clk
0:00:46.3]} 40... Rxd6 {[%clk 0:01:10]} 41. Bxd6 {[%clk 0:00:47.2]} 41... Nxh5
{[%clk 0:01:10.7]} 42. Bc7 {[%clk 0:00:47.5]} 42... Ng7+ {[%clk 0:01:08.4]} 43.
Kg4 {[%clk 0:00:45.8]} 43... h5+ {[%clk 0:01:03]} 44. Kh4 {[%clk 0:00:44.3]}
44... Ne6 {[%clk 0:00:46.2]} 45. Bxb6 {[%clk 0:00:41.7]} 45... Nd4 {[%clk
0:00:46.7]} 46. Bxa5 {[%clk 0:00:36.9]} 46... Nxb3 {[%clk 0:00:46.6]} 47. Bb6
{[%clk 0:00:37.5]} 47... Ke6 {[%clk 0:00:45.3]} 48. a5 {[%clk 0:00:31.1]} 48...
Kd7 {[%clk 0:00:43.3]} 49. Kxh5 {[%clk 0:00:30.1]} 49... Nd2 {[%clk 0:00:42.7]}
50. Bxc5 {[%clk 0:00:26.7]} 50... Nxe4 {[%clk 0:00:42.4]} 51. Bb6 {[%clk
0:00:18.9]} 51... Nd2 {[%clk 0:00:37.5]} 52. c5 {[%clk 0:00:17.4]} 52... Nb3
{[%clk 0:00:36.8]} 53. Kg5 {[%clk 0:00:17.1]} 53... Nxc5 {[%clk 0:00:37]} 54.
Bxc5 {[%clk 0:00:16.4]} 54... Kc6 {[%clk 0:00:37.5]} 55. a6 {[%clk 0:00:15.1]}
55... Kc7 {[%clk 0:00:36]} 56. Ba7 {[%clk 0:00:15.3]} 56... Kc6 {[%clk
0:00:35.5]} 57. Bd4 {[%clk 0:00:13]} 57... Kc7 {[%clk 0:00:35.5]} 58. Kf5 {[%clk
0:00:13.1]} 58... Kb8 {[%clk 0:00:35.6]} 59. Ke6 {[%clk 0:00:13.7]} 59... Ka8
{[%clk 0:00:36.2]} 60. Kd6 {[%clk 0:00:13.6]} 60... Kb8 {[%clk 0:00:36.8]} 61.
Kc6 {[%clk 0:00:14.2]} 61... Ka8 {[%clk 0:00:37.7]} 62. Kc7 {[%clk 0:00:14.2]}
1/2-1/2

[Event "Late-Titled-Tuesday-Blitz-April-02-2024"]
[Site "Chess.com"]
[Date "2024.04.02"]
[Round "2"]
[White "Supelyel"]
[Black "rasmussvane"]
[Result "0-1"]
[WhiteElo "2409"]
[BlackElo "2900"]
[TimeControl "180+1"]
[EndTime "14:17:23 PDT"]
[Termination "rasmussvane won by resignation"]

1. c4 {[%clk 0:02:58.1]} 1... f5 {[%clk 0:02:54.4]} 2. g3 {[%clk 0:02:56.8]}
2... Nf6 {[%clk 0:02:54.1]} 3. Bg2 {[%clk 0:02:54]} 3... g6 {[%clk 0:02:54.5]}
4. Nc3 {[%clk 0:02:53.9]} 4... Bg7 {[%clk 0:02:55]} 5. Nf3 {[%clk 0:02:54.6]}
5... O-O {[%clk 0:02:55.3]} 6. O-O {[%clk 0:02:55.3]} 6... d6 {[%clk 0:02:55.7]}
7. d3 {[%clk 0:02:55.9]} 7... e5 {[%clk 0:02:55.3]} 8. Bg5 {[%clk 0:02:55.5]}
8... c6 {[%clk 0:02:54.5]} 9. Rb1 {[%clk 0:02:54.6]} 9... a5 {[%clk 0:02:53.3]}
10. a3 {[%clk 0:02:54.5]} 10... Be6 {[%clk 0:02:52.7]} 11. Qc2 {[%clk
0:02:54.1]} 11... Nbd7 {[%clk 0:02:52.6]} 12. b4 {[%clk 0:02:54]} 12... axb4
{[%clk 0:02:52.3]} 13. axb4 {[%clk 0:02:54.9]} 13... d5 {[%clk 0:02:47.5]} 14.
Nd2 {[%clk 0:02:29.1]} 14... h6 {[%clk 0:02:45.3]} 15. Bxf6 {[%clk 0:02:28.8]}
15... Nxf6 {[%clk 0:02:46.2]} 16. b5 {[%clk 0:02:26.6]} 16... Qd6 {[%clk
0:02:37.1]} 17. Rfc1 {[%clk 0:02:15]} 17... Rfc8 {[%clk 0:02:34.5]} 18. bxc6
{[%clk 0:02:06.2]} 18... bxc6 {[%clk 0:02:33.8]} 19. c5 {[%clk 0:02:05.3]} 19...
Qe7 {[%clk 0:02:21.6]} 20. Na4 {[%clk 0:02:04.8]} 20... Rc7 {[%clk 0:02:22]} 21.
Nb6 {[%clk 0:02:03.8]} 21... Re8 {[%clk 0:02:22]} 22. e4 {[%clk 0:01:54.5]}
22... fxe4 {[%clk 0:02:04.9]} 23. dxe4 {[%clk 0:01:53.1]} 23... d4 {[%clk
0:02:05.5]} 24. Bf1 {[%clk 0:01:38.1]} 24... Kh7 {[%clk 0:02:03.6]} 25. Bc4
{[%clk 0:01:34.5]} 25... Bg4 {[%clk 0:02:03.8]} 26. f3 {[%clk 0:01:34.3]} 26...
Bh3 {[%clk 0:02:04.1]} 27. Bd3 {[%clk 0:01:29.8]} 27... Rf8 {[%clk 0:01:58.4]}
28. Nb3 {[%clk 0:01:03]} 28... Nh5 {[%clk 0:01:52.3]} 29. Qe2 {[%clk 0:01:00.9]}
29... Bf6 {[%clk 0:01:51.1]} 30. f4 {[%clk 0:00:38.4]} 30... exf4 {[%clk
0:01:44.1]} 31. e5 {[%clk 0:00:38.1]} 31... Qxe5 {[%clk 0:01:40.4]} 32. g4
{[%clk 0:00:32.8]} 32... Qxe2 {[%clk 0:01:26.2]} 33. Bxe2 {[%clk 0:00:32.6]}
33... Re7 {[%clk 0:01:24.8]} 34. Bf3 {[%clk 0:00:27.1]} 34... Re3 {[%clk
0:01:24.7]} 35. Nd2 {[%clk 0:00:26.8]} 35... Ng7 {[%clk 0:01:18.2]} 36. Nd7
{[%clk 0:00:25.2]} 36... Rf7 {[%clk 0:01:17]} 37. Nxf6+ {[%clk 0:00:25.4]} 37...
Rxf6 {[%clk 0:01:17.9]} 38. Rb6 {[%clk 0:00:25.7]} 38... Rc3 {[%clk 0:01:16.1]}
39. Ra1 {[%clk 0:00:21.7]} 39... Re6 {[%clk 0:01:08.4]} 40. Rxc6 {[%clk
0:00:13.1]} 40... Rxc6 {[%clk 0:01:06.2]} 41. Bxc6 {[%clk 0:00:14]} 41... Rxc5
{[%clk 0:00:59.5]} 42. Be4 {[%clk 0:00:14.4]} 42... Bxg4 {[%clk 0:00:57.1]} 43.
Ra7 {[%clk 0:00:14.6]} 43... Re5 {[%clk 0:00:47.6]} 44. Kf2 {[%clk 0:00:14.6]}
44... h5 {[%clk 0:00:46.9]} 45. Bd3 {[%clk 0:00:13.7]} 45... Kh6 {[%clk
0:00:47.1]} 46. Ne4 {[%clk 0:00:13.6]} 46... Bf5 {[%clk 0:00:46.2]} 47. Kf3
{[%clk 0:00:12.7]} 47... Ne6 {[%clk 0:00:46.4]} 48. Nf6 {[%clk 0:00:13]} 48...
Bxd3 {[%clk 0:00:39.3]} 49. h4 {[%clk 0:00:13.4]} 49... Re3+ {[%clk 0:00:33.7]}
50. Kf2 {[%clk 0:00:13.2]} 50... g5 {[%clk 0:00:33.4]} 51. hxg5+ {[%clk
0:00:10.4]} 51... Kxg5 {[%clk 0:00:32.7]} 52. Nd5 {[%clk 0:00:11.3]} 52... Re2+
{[%clk 0:00:31.8]} 53. Kf3 {[%clk 0:00:10.3]} 53... Re5 {[%clk 0:00:31.5]} 54.
Nxf4 {[%clk 0:00:08.5]} 54... Nxf4 {[%clk 0:00:29.8]} 55. Rg7+ {[%clk
0:00:09.2]} 55... Bg6 {[%clk 0:00:29.8]} 0-1

[Event "Late-Titled-Tuesday-Blitz-April-02-2024"]
[Site "Chess.com"]
[Date "2024.04.02"]
[Round "2"]
[White "DrVelja"]
[Black "Statham_01"]
[Result "1-0"]
[WhiteElo "3031"]
[BlackElo "2612"]
[TimeControl "180+1"]
[EndTime "14:17:28 PDT"]
[Termination "DrVelja won by checkmate"]

1. e4 {[%clk 0:03:00.9]} 1... e5 {[%clk 0:03:00.6]} 2. Nf3 {[%clk 0:03:01.4]}
2... Nf6 {[%clk 0:03:01.2]} 3. Nxe5 {[%clk 0:02:54.4]} 3... d5 {[%clk
0:03:01.3]} 4. Nf3 {[%clk 0:02:55.2]} 4... dxe4 {[%clk 0:02:59.8]} 5. Ne5 {[%clk
0:02:51.7]} 5... Bc5 {[%clk 0:02:20]} 6. Nc4 {[%clk 0:02:33.9]} 6... O-O {[%clk
0:02:04.9]} 7. Be2 {[%clk 0:02:28.7]} 7... Nc6 {[%clk 0:02:01]} 8. Nc3 {[%clk
0:01:57.2]} 8... Nd4 {[%clk 0:01:49.7]} 9. O-O {[%clk 0:01:48.4]} 9... Nxe2+
{[%clk 0:01:40.4]} 10. Qxe2 {[%clk 0:01:48.9]} 10... Bg4 {[%clk 0:01:39.2]} 11.
Qe1 {[%clk 0:01:49.6]} 11... Re8 {[%clk 0:01:34.6]} 12. Ne3 {[%clk 0:01:48.2]}
12... Bh5 {[%clk 0:01:31.1]} 13. Rb1 {[%clk 0:01:24.6]} 13... Qd7 {[%clk
0:01:24.9]} 14. b4 {[%clk 0:01:24.9]} 14... Bd6 {[%clk 0:01:06.6]} 15. h3 {[%clk
0:01:21.4]} 15... Qe7 {[%clk 0:00:58.1]} 16. Nf5 {[%clk 0:01:14.2]} 16... Qe5
{[%clk 0:00:52.7]} 17. Nxd6 {[%clk 0:01:14.9]} 17... cxd6 {[%clk 0:00:52.9]} 18.
Bb2 {[%clk 0:01:14.2]} 18... d5 {[%clk 0:00:34.3]} 19. Nb5 {[%clk 0:01:09.1]}
19... Qe7 {[%clk 0:00:24.6]} 20. Qe3 {[%clk 0:01:08.3]} 20... a6 {[%clk
0:00:22.8]} 21. Bxf6 {[%clk 0:00:59.6]} 21... gxf6 {[%clk 0:00:17.3]} 22. Nd4
{[%clk 0:01:00.1]} 22... Kh8 {[%clk 0:00:13.7]} 23. Rbe1 {[%clk 0:00:50.1]}
23... Qe5 {[%clk 0:00:11.4]} 24. d3 {[%clk 0:00:31.9]} 24... f5 {[%clk
0:00:10.1]} 25. f4 {[%clk 0:00:22.2]} 25... Qf6 {[%clk 0:00:10.4]} 26. Kh2
{[%clk 0:00:21.8]} 26... exd3 {[%clk 0:00:08.5]} 27. Qxd3 {[%clk 0:00:22.7]}
27... Re4 {[%clk 0:00:08.4]} 28. Rxe4 {[%clk 0:00:19.9]} 28... fxe4 {[%clk
0:00:09.3]} 29. Qe3 {[%clk 0:00:20.5]} 29... Rc8 {[%clk 0:00:08.1]} 30. g4
{[%clk 0:00:19.7]} 30... Bg6 {[%clk 0:00:08.1]} 31. f5 {[%clk 0:00:18.4]} 31...
Qe5+ {[%clk 0:00:07.6]} 32. Kg2 {[%clk 0:00:18.7]} 32... Rc4 {[%clk 0:00:07.9]}
33. c3 {[%clk 0:00:19.2]} 33... Qc7 {[%clk 0:00:03.4]} 34. fxg6 {[%clk
0:00:19.2]} 34... hxg6 {[%clk 0:00:04.1]} 35. Ne6 {[%clk 0:00:07.4]} 35... fxe6
{[%clk 0:00:02]} 36. Qh6+ {[%clk 0:00:07.8]} 36... Qh7 {[%clk 0:00:01.3]} 37.
Rf8# {[%clk 0:00:08.7]} 1-0

[Event "Late-Titled-Tuesday-Blitz-April-02-2024"]
[Site "Chess.com"]
[Date "2024.04.02"]
[Round "2"]
[White "Darkdefense15"]
[Black "ChessSwole"]
[Result "0-1"]
[WhiteElo "2371"]
[BlackElo "2692"]
[TimeControl "180+1"]
[EndTime "14:17:28 PDT"]
[Termination "ChessSwole won by resignation"]

1. d4 {[%clk 0:03:00.9]} 1... Nf6 {[%clk 0:02:59.3]} 2. Bf4 {[%clk 0:02:59.4]}
2... d5 {[%clk 0:02:58.2]} 3. e3 {[%clk 0:02:58.3]} 3... c5 {[%clk 0:02:58.4]}
4. dxc5 {[%clk 0:02:58.7]} 4... e6 {[%clk 0:02:57.9]} 5. b4 {[%clk 0:02:58.3]}
5... a5 {[%clk 0:02:55.6]} 6. c3 {[%clk 0:02:57.8]} 6... axb4 {[%clk 0:02:51.4]}
7. cxb4 {[%clk 0:02:57.7]} 7... b6 {[%clk 0:02:40.8]} 8. Bb5+ {[%clk 0:02:56.9]}
8... Bd7 {[%clk 0:02:39.3]} 9. Bxd7+ {[%clk 0:02:53.3]} 9... Qxd7 {[%clk
0:02:35.7]} 10. cxb6 {[%clk 0:02:42.2]} 10... Bxb4+ {[%clk 0:02:36.6]} 11. Nd2
{[%clk 0:02:41.3]} 11... Ne4 {[%clk 0:02:25.8]} 12. Nf3 {[%clk 0:02:39.8]} 12...
Qb5 {[%clk 0:02:21.4]} 13. Nd4 {[%clk 0:02:30.3]} 13... Qd3 {[%clk 0:02:14.5]}
14. Nb3 {[%clk 0:02:16.1]} 14... Nc3 {[%clk 0:01:45.1]} 15. Qf3 {[%clk
0:02:07.1]} 15... Rxa2 {[%clk 0:01:18.7]} 16. Rxa2 {[%clk 0:02:05]} 16... Nxa2
{[%clk 0:01:19.6]} 17. Qe2 {[%clk 0:01:23.2]} 17... Qxb3 {[%clk 0:01:15.8]} 18.
Qb5+ {[%clk 0:01:23.1]} 18... Nd7 {[%clk 0:01:14.3]} 19. O-O {[%clk 0:01:22.6]}
19... Nc3 {[%clk 0:01:05.2]} 20. Qc6 {[%clk 0:01:07.5]} 20... Qa4 {[%clk
0:00:25.5]} 21. Qc8+ {[%clk 0:00:54.6]} 21... Ke7 {[%clk 0:00:25.5]} 22. Qxh8
{[%clk 0:00:53.7]} 22... Ne2+ {[%clk 0:00:22.7]} 23. Kh1 {[%clk 0:00:53.9]}
23... Nxf4 {[%clk 0:00:20.6]} 24. Qxg7 {[%clk 0:00:43.6]} 24... Ng6 {[%clk
0:00:18]} 25. Nf3 {[%clk 0:00:41]} 25... Qa6 {[%clk 0:00:16.7]} 26. Rb1 {[%clk
0:00:39.5]} 26... Bd6 {[%clk 0:00:13.4]} 27. h4 {[%clk 0:00:30.8]} 27... Qd3
{[%clk 0:00:12.9]} 28. Re1 {[%clk 0:00:26.1]} 28... h5 {[%clk 0:00:13.1]} 29. g3
{[%clk 0:00:24.3]} 29... Nxb6 {[%clk 0:00:12.4]} 30. Qh6 {[%clk 0:00:20.2]}
30... Qf5 {[%clk 0:00:12.1]} 31. Kg2 {[%clk 0:00:18.8]} 31... Nc4 {[%clk
0:00:12.5]} 32. Qg5+ {[%clk 0:00:19.2]} 32... Qxg5 {[%clk 0:00:12.5]} 33. hxg5
{[%clk 0:00:19.4]} 33... Nce5 {[%clk 0:00:12.5]} 34. Rh1 {[%clk 0:00:19.6]}
34... Nxf3 {[%clk 0:00:10.7]} 35. Kxf3 {[%clk 0:00:20.5]} 35... Ne5+ {[%clk
0:00:11.4]} 36. Ke2 {[%clk 0:00:20.1]} 36... Ng4 {[%clk 0:00:10.1]} 37. Rxh5
{[%clk 0:00:20]} 37... Ne5 {[%clk 0:00:10.3]} 38. f4 {[%clk 0:00:20.1]} 38...
Nc4 {[%clk 0:00:09.7]} 39. Kf3 {[%clk 0:00:20.3]} 39... Bc5 {[%clk 0:00:10.1]}
40. e4 {[%clk 0:00:20.9]} 40... Nd2+ {[%clk 0:00:10.5]} 41. Ke2 {[%clk
0:00:21.2]} 41... Nxe4 {[%clk 0:00:11.4]} 42. Rh7 {[%clk 0:00:21.4]} 42... Nxg3+
{[%clk 0:00:11.8]} 43. Kf3 {[%clk 0:00:21.7]} 43... Nf5 {[%clk 0:00:12.1]} 44.
g6 {[%clk 0:00:22.4]} 44... Kf6 {[%clk 0:00:10.5]} 45. gxf7 {[%clk 0:00:22.5]}
45... Bf8 {[%clk 0:00:10.6]} 46. Kg4 {[%clk 0:00:21.8]} 46... Bg7 {[%clk
0:00:10.4]} 47. Rh8 {[%clk 0:00:16.2]} 47... Nh6+ {[%clk 0:00:09.2]} 48. Kh5
{[%clk 0:00:14.3]} 48... Nxf7 {[%clk 0:00:09.2]} 49. Re8 {[%clk 0:00:13.3]}
49... Nd6 {[%clk 0:00:09]} 50. Kg4 {[%clk 0:00:13.7]} 50... Nxe8 {[%clk
0:00:09.2]} 0-1